bitfinex/quotes_SOLUSD_20240626
["timestamp","ask_amount","ask_price","bid_price","bid_amount"]
[1719404061565,48.37542683,137.29,137.25,25.4994]
[1719404062595,21.59542683,137.29,137.25,25.4994]
[1719404063198,28.87942683,137.29,137.25,18.2136]
[1719404063405,21.59542683,137.29,137.24,7.2863]
[1719404064495,7.2844,137.28,137.24,7.2863]
[1719404064668,20.0,137.27,137.24,7.2863]
[1719404066693,28.87982683,137.28,137.24,7.2863]
[1719404066876,7.285,137.27,137.23,7.2869]
[1719404067868,28.87992683,137.28,137.23,7.2869]
[1719404068481,7.2849,137.27,137.23,7.2869]
[1719404068679,1.59542683,137.26,137.22,25.5049]
[1719404069285,1.59542683,137.26,137.23,7.2868]
[1719404069794,1.59542683,137.27,137.23,7.2868]
[1719404070187,8.88032683,137.27,137.23,7.2868]
[1719404070381,1.59542683,137.26,137.23,7.2868]
[1719404071395,1.59542683,137.26,137.22,25.505]
[1719404071601,21.59542683,137.26,137.22,25.505]
[1719404072399,21.59542683,137.26,137.23,7.2869]
[1719404073578,1.59542683,137.25,137.23,7.2869]
[1719404074680,1.59542683,137.26,137.23,7.2869]
[1719404077301,1.59542683,137.26,137.19,39.8698]
[1719404077502,7.2863,137.25,137.2,7.2882]
[1719404077800,7.2881,137.21,137.17,18.2254]
[1719404078004,1.59542683,137.2,137.17,18.2254]
[1719404078301,21.59542683,137.2,137.17,18.2254]
[1719404078809,28.88402683,137.2,137.16,7.2903]
[1719404079007,1.59542683,137.19,137.16,7.2903]
[1719404079308,1.59542683,137.19,137.15,7.2911]
[1719404079798,8.88452683,137.19,137.15,7.2911]
[1719404080401,20.0,137.18,137.14,25.5199]
[1719404080591,1.59542683,137.17,137.14,25.5199]
[1719404080863,1.59542683,137.19,137.14,18.2283]
[1719404080998,7.2897,137.18,137.14,25.5201]
[1719404081222,28.88572683,137.17,137.12,13.5125]
[1719404081389,20.0,137.16,137.12,13.5125]
[1719404081590,1.59542683,137.15,137.13,7.2923]
[1719404082520,1.59542683,137.16,137.13,7.2923]
[1719404083704,1.59542683,137.16,137.12,7.2927]
[1719404084013,1.59542683,137.16,137.13,7.2923]
[1719404084310,1.59542683,137.16,137.12,7.2926]
[1719404084690,26.85,137.15,137.12,7.2926]
[1719404086416,1.59542683,137.14,137.1,0.8443986]
[1719404086627,7.2925,137.13,137.1,0.8443986]
[1719404086801,28.44542683,137.12,137.1,0.8443986]
[1719404086997,48.44542683,137.12,137.1,0.8443986]
[1719404088011,28.88832683,137.12,137.1,0.8443986]
[1719404088193,7.2934,137.11,137.1,0.8443986]
[1719404088510,27.2934,137.11,137.1,0.8443986]
[1719404088714,20.0,137.11,137.1,0.8443986]
[1719404089497,27.2934,137.11,137.1,0.8443986]
[1719404090114,20.0,137.11,137.1,0.8443986]
[1719404095534,57.7470884,137.16,137.11,7.2934]
[1719404095705,26.85,137.14,137.11,7.2934]
[1719404095901,1.59542683,137.14,137.12,7.2928]
[1719404096722,1.59542683,137.14,137.11,25.5264]
[1719404097123,21.59542683,137.15,137.11,25.5264]
[1719404097304,21.59542683,137.15,137.12,7.2927]
[1719404097807,28.87012501,137.19,137.14,7.2914]
[1719404097808,30.33978721,137.19,137.14,7.2914]
[1719404098007,48.44542683,137.18,137.14,7.2914]
[1719404098205,1.59542683,137.17,137.15,25.519]
[1719404098433,20.0,137.18,137.16,7.2906]
[1719404098618,1.59542683,137.19,137.16,7.2906]
[1719404098802,21.59542683,137.2,137.17,7.2901]
[1719404099007,1.59542683,137.2,137.17,7.2901]
[1719404099226,21.59542683,137.21,137.17,7.2901]
[1719404099538,21.59542683,137.21,137.18,7.2896]
[1719404099829,1.59542683,137.21,137.17,25.5153]
[1719404100209,8.88362683,137.21,137.17,18.2253]
[1719404100616,1.59542683,137.21,137.17,25.5154]
[1719404101234,8.88352683,137.21,137.17,18.2253]
[1719404101725,1.59542683,137.21,137.17,25.5154]
[1719404102615,1.59542683,137.21,137.18,7.2896]
[1719404104329,1.59542683,137.21,137.17,25.5153]
[1719404104830,7.2887,137.2,137.15,29.0442]
[1719404105038,8.88352683,137.21,137.16,7.2905]
[1719404105230,20.0,137.2,137.16,25.5171]
[1719404105420,1.59542683,137.19,137.16,25.5171]
[1719404106330,20.0,137.2,137.16,18.2266]
[1719404106532,20.0,137.2,137.19,7.2891]
[1719404106740,1.59542683,137.23,137.2,7.2885]
[1719404107325,20.0,137.24,137.21,7.2879]
[1719404107326,21.59542683,137.24,137.21,7.2879]
[1719404107647,22.4131,137.26,137.2,18.2214]
[1719404107648,21.59542683,137.25,137.22,7.2875]
[1719404107943,21.59542683,137.25,137.21,7.288]
[1719404108242,7.2869,137.24,137.17,18.2242]
[1719404108439,1.59542683,137.23,137.18,0.34]
[1719404108832,1.59542683,137.23,137.19,7.2888]
[1719404109019,8.88242683,137.23,137.18,7.2895]
[1719404109222,1.59542683,137.23,137.2,7.2886]
[1719404109629,21.59542683,137.23,137.2,7.2886]
[1719404110129,21.59542683,137.23,137.19,25.5116]
[1719404110326,21.59542683,137.23,137.19,18.2227]
[1719404110528,1.59542683,137.23,137.2,7.2883]
[1719404110938,21.59542683,137.24,137.21,7.288]
[1719404111326,20.0,137.23,137.21,7.288]
[1719404111528,20.0,137.25,137.21,7.288]
[1719404111730,21.59542683,137.25,137.21,7.288]
[1719404113546,28.88142683,137.25,137.21,7.288]
[1719404114420,28.88142683,137.25,137.19,25.5113]
[1719404114621,7.2867,137.24,137.19,25.5113]
[1719404114819,21.59542683,137.23,137.19,25.5113]
[1719404115129,21.59542683,137.23,137.2,7.2885]
[1719404115343,21.59542683,137.24,137.2,7.2885]
[1719404115533,1.59542683,137.23,137.2,7.2885]
[1719404117529,21.59542683,137.24,137.21,7.288]
[1719404117837,20.0,137.24,137.23,7.287]
[1719404118629,8.88032683,137.27,137.23,7.287]
[1719404118829,20.0,137.26,137.23,7.287]
[1719404119534,20.0,137.26,137.22,25.5061]
[1719404120646,20.0,137.26,137.22,52.3061]
[1719404120863,20.0,137.26,137.23,7.287]
[1719404121231,8.87982683,137.28,137.23,7.287]
[1719404121232,20.0,137.27,137.23,7.287]
[1719404121441,21.59542683,137.27,137.23,7.287]
[1719404122054,21.59542683,137.27,137.24,7.2864]
[1719404122736,20.0,137.27,137.23,7.2869]
[1719404123047,20.0,137.27,137.25,7.2859]
[1719404123253,48.39542683,137.29,137.25,7.2859]
[1719404123651,21.59542683,137.29,137.25,7.2859]
[1719404124031,28.87932683,137.29,137.25,7.2859]
[1719404124235,27.2839,137.29,137.25,7.2859]
[1719404124535,27.2839,137.29,137.24,52.3021]
[1719404125053,8.88002683,137.28,137.24,45.0159]
[1719404125234,20.0,137.27,137.24,18.2159]
[1719404125428,1.59542683,137.26,137.21,39.6797]
[1719404125649,1.59542683,137.26,137.22,7.2874]
[1719404125855,8.88092683,137.26,137.21,73.7677]
[1719404126033,7.2863,137.25,137.21,39.6797]
[1719404126559,7.2863,137.25,137.21,21.4605]
[1719404126763,35.68102683,137.26,137.21,28.7483]
[1719404126927,1.59542683,137.26,137.22,7.2872]
[1719404127129,1.59542683,137.26,137.22,34.0872]
[1719404127327,20.0,137.27,137.24,7.2864]
[1719404127747,28.88032683,137.27,137.23,18.2173]
[1719404128037,21.59542683,137.27,137.23,25.5041]
[1719404128258,20.0,137.27,137.24,7.2863]
[1719404128564,20.0,137.27,137.23,18.2173]
[1719404128565,21.59542683,137.27,137.23,25.5041]
[1719404128949,21.59542683,137.27,137.23,52.3041]
[1719404129966,28.88032683,137.27,137.23,52.3041]
[1719404130852,21.59542683,137.27,137.23,52.3041]
[1719404131854,28.88032683,137.27,137.23,52.3041]
[1719404132049,8.88082683,137.26,137.22,7.2873]
[1719404132366,20.0,137.25,137.22,7.2873]
[1719404132737,21.59542683,137.26,137.22,7.2873]
[1719404133553,28.88082683,137.26,137.22,7.2873]
[1719404133757,1.59542683,137.25,137.22,7.2873]
[1719404134169,27.2854,137.26,137.22,7.2873]
[1719404136459,20.0,137.26,137.24,7.2864]
[1719404136667,21.59542683,137.27,137.24,7.2864]
[1719404137049,21.59542683,137.28,137.25,7.2858]
[1719404137370,1.59542683,137.31,137.29,7.2837]
[1719404137541,21.59542683,137.33,137.29,7.2837]
[1719404137737,20.0,137.33,137.31,7.2824]
[1719404138232,20.0,137.33,137.31,34.0824]
[1719404138433,20.0,137.33,137.31,7.2824]
[1719404138637,255.5,137.34,137.31,7.2824]
[1719404139494,255.5,137.34,137.3,52.2907]
[1719404139643,255.5,137.34,137.31,7.2824]
[1719404140035,1.59542683,137.33,137.3,18.2077]
[1719404140358,8.87712683,137.33,137.29,7.2835]
[1719404140665,1.59542683,137.32,137.28,7.2841]
[1719404140961,1.59542683,137.33,137.3,7.2832]
[1719404141144,21.59542683,137.33,137.29,25.4929]
[1719404141350,28.87722683,137.33,137.29,18.2092]
[1719404141552,21.59542683,137.33,137.29,18.2092]
[1719404142069,21.59542683,137.33,137.29,25.4928]
[1719404142258,255.5,137.34,137.29,18.2092]
[1719404142454,255.5,137.34,137.32,7.2817]
[1719404144488,255.5,137.34,137.31,18.2062]
[1719404144672,255.5,137.34,137.33,7.2817]
[1719404145951,179.4047841,137.37,137.33,7.2817]
[1719404146180,20.0,137.36,137.33,7.2817]
[1719404146883,20.0,137.36,137.33,25.4858]
[1719404147984,20.0,137.36,137.34,7.2811]
[1719404148187,179.4047841,137.37,137.35,7.2806]
[1719404148880,178.86341127,137.37,137.35,7.2806]
[1719404149463,178.86341127,137.37,137.34,13.7628]
[1719404151180,178.86341127,137.37,137.35,25.6517]
[1719404151362,178.86341127,137.37,137.35,25.4817]
[1719404152090,178.86341127,137.37,137.33,15.7439]
[1719404152287,178.86341127,137.37,137.33,23.0254]
[1719404152861,178.86341127,137.37,137.33,7.2815]
[1719404153897,28.87552683,137.36,137.32,18.2052]
[1719404154397,1.59542683,137.35,137.32,18.2052]
[1719404154570,1.59542683,137.35,137.32,25.4873]
[1719404155098,1.59542683,137.35,137.32,18.2052]
[1719404155662,1.59542683,137.35,137.32,25.487]
[1719404156681,1.59542683,137.35,137.29,18.2096]
[1719404156682,7.2819,137.33,137.29,18.2096]
[1719404156962,21.59542683,137.32,137.28,25.4947]
[1719404157300,43.71,137.45,137.28,25.4947]
[1719404157495,255.5,137.42,137.28,18.2108]
[1719404157797,45.34,137.41,137.3,7.2832]
[1719404158258,7.2809,137.35,137.3,7.2832]
[1719404158462,7.2802,137.36,137.31,7.2826]
[1719404158692,7.2798,137.37,137.32,7.2822]
[1719404158868,7.2801,137.36,137.31,7.2825]
[1719404159493,20.0,137.35,137.31,7.2825]
[1719404159990,20.0,137.35,137.32,7.2822]
[1719404160176,20.0,137.36,137.32,32.2822]
[1719404160384,27.2801,137.36,137.32,32.2822]
[1719404160580,27.2801,137.36,137.3,18.2069]
[1719404160581,7.2808,137.35,137.3,50.49]
[1719404160887,7.2808,137.35,137.31,7.2827]
[1719404161190,27.2803,137.36,137.31,7.2827]
[1719404161865,27.2803,137.36,137.3,43.2069]
[1719404161866,20.0,137.36,137.3,43.2069]
[1719404162065,7.2812,137.34,137.3,50.4902]
[1719404162264,7.2808,137.35,137.3,50.4902]
[1719404164164,7.2808,137.35,137.31,7.2827]
[1719404164992,7.2803,137.36,137.31,7.2827]
[1719404165200,20.0,137.35,137.31,7.2827]
[1719404166203,20.0,137.35,137.3,43.2069]
[1719404166495,7.2813,137.34,137.3,43.2069]
[1719404166664,46.77,137.33,137.3,25.0]
[1719404167070,20.0,137.33,137.3,25.0]
[1719404168488,20.0,137.33,137.28,25.0]
[1719404168866,7.2834,137.3,137.28,25.0]
[1719404169087,20.0,137.29,137.28,25.0]
[1719404170787,20.0,137.29,137.25,50.4994]
[1719404170975,27.2842,137.29,137.25,25.0]
[1719404171279,27.2841,137.29,137.25,25.0]
[1719404171669,27.2841,137.29,137.24,7.2863]
[1719404173891,20.0,137.29,137.23,67.4487]
[1719404174078,20.0,137.3,137.26,25.4985]
[1719404174680,27.2835,137.3,137.26,18.2133]
[1719404174989,27.2835,137.3,137.25,32.2858]
[1719404175181,7.2838,137.29,137.25,25.0]
[1719404175489,20.0,137.28,137.25,25.0]
[1719404175699,20.0,137.28,137.25,32.2859]
[1719404176403,20.0,137.28,137.25,25.0]
[1719404177897,7.2846,137.28,137.25,25.0]
[1719404178105,20.0,137.27,137.25,25.0]
[1719404178399,20.0,137.3,137.25,25.0]
[1719404178602,7.2849,137.27,137.23,25.0]
[1719404178974,7.2845,137.28,137.23,32.287]
[1719404179303,20.0,137.27,137.23,32.287]
[1719404179598,20.0,137.27,137.24,7.2864]
[1719404179900,20.0,137.28,137.24,7.2864]
[1719404180600,20.0,137.28,137.25,32.2855]
[1719404180802,20.0,137.29,137.25,32.2855]
[1719404181008,27.2839,137.29,137.25,25.0]
[1719404181376,7.2845,137.28,137.25,25.0]
[1719404181586,20.0,137.27,137.25,25.0]
[1719404181792,27.2849,137.27,137.25,25.0]
[1719404183001,7.2854,137.26,137.25,25.0]
[1719404183204,27.2854,137.26,137.25,25.0]
[1719404184098,20.0,137.26,137.25,25.0]
[1719404185878,27.2854,137.26,137.22,32.2875]
[1719404186083,27.2854,137.26,137.22,25.0]
[1719404186598,20.0,137.26,137.22,32.2875]
[1719404186801,20.0,137.26,137.23,7.2869]
[1719404187109,20.0,137.26,137.22,32.2874]
[1719404188180,20.0,137.26,137.24,25.0]
[1719404189505,20.0,137.27,137.24,25.0]
[1719404190901,26.81,137.25,137.24,25.0]
[1719404191281,26.81,137.25,137.22,32.2873]
[1719404191509,7.2855,137.26,137.22,25.0]
[1719404192110,54.0949,137.27,137.22,32.2873]
[1719404192294,26.81,137.24,137.22,32.2873]
[1719404194409,20.0,137.27,137.25,7.2857]
[1719404194592,20.0,137.29,137.26,7.2853]
[1719404194791,27.2833,137.3,137.27,25.0]
[1719404195003,26.81,137.28,137.27,25.0]
[1719404195196,46.81,137.28,137.25,7.2857]
[1719404195380,20.0,137.27,137.25,7.2857]
[1719404195584,20.0,137.27,137.26,25.0]
[1719404198505,46.81,137.27,137.26,25.0]
[1719404198889,46.81,137.27,137.24,25.0]
[1719404199098,26.81,137.26,137.24,25.0]
[1719404199698,20.0,137.27,137.24,25.0]
[1719404199908,27.2849,137.27,137.24,25.0]
[1719404201024,20.0,137.27,137.24,25.0]
[1719404201196,7.2851,137.27,137.24,25.0]
[1719404202015,7.2846,137.28,137.24,25.0]
[1719404202214,20.0,137.27,137.24,25.0]
[1719404207719,20.0,137.27,137.24,32.2864]
[1719404207927,46.81,137.27,137.24,32.2864]
[1719404208098,46.81,137.27,137.26,25.0]
[1719404208298,20.0,137.27,137.26,25.0]
[1719404208498,20.0,137.27,137.26,25.499]
[1719404208911,20.0,137.27,137.26,43.2136]
[1719404209806,20.0,137.27,137.26,25.0]
[1719404210419,20.0,137.27,137.24,47.767]
[1719404211301,20.0,137.27,137.26,25.0]
[1719404211502,20.0,137.27,137.24,47.767]
[1719404215042,20.0,137.27,137.24,55.0534]
[1719404217234,20.0,137.28,137.24,55.0534]
[1719404218045,27.2844,137.28,137.24,25.0]
[1719404221751,15.283,137.27,137.18,25.0]
[1719404221916,26.81,137.21,137.18,25.0]
[1719404223434,26.81,137.21,137.2,25.0]
[1719404223746,7.2872,137.23,137.2,25.0]
[1719404224045,26.81,137.21,137.2,25.0]
[1719404224563,20.0,137.22,137.2,25.0]
[1719404225250,20.0,137.23,137.2,25.0]
[1719404225542,20.0,137.23,137.22,25.0]
[1719404225739,20.0,137.23,137.2,32.2885]
[1719404225950,20.0,137.24,137.2,32.2885]
[1719404226456,20.0,137.24,137.22,25.0]
[1719404226629,20.0,137.26,137.2,25.0]
[1719404227230,7.2876,137.22,137.2,25.0]
[1719404228036,7.289,137.2,137.18,25.0]
[1719404228240,26.81,137.19,137.18,25.0]
[1719404230561,26.81,137.19,137.14,43.2295]
[1719404230741,26.81,137.16,137.14,43.2295]
[1719404230942,15.3446,137.22,137.14,25.0]
[1719404230943,7.2904,137.17,137.14,25.0]
[1719404231145,46.81,137.15,137.14,25.0]
[1719404233655,15.3446,137.22,137.16,25.0]
[1719404233851,27.2885,137.21,137.16,7.2906]
[1719404234162,26.81,137.18,137.14,50.5211]
[1719404234365,20.0,137.17,137.14,50.5211]
[1719404234666,20.0,137.17,137.16,25.0]
[1719404234868,20.0,137.17,137.15,7.2912]
[1719404235164,20.0,137.19,137.16,25.0]
[1719404235548,34.1007,137.17,137.14,25.0]
[1719404235771,26.81,137.15,137.14,25.0]
[1719404235958,46.81,137.15,137.14,25.0]
[1719404238149,54.1012,137.15,137.14,25.0]
[1719404238680,46.81,137.15,137.14,25.0]
[1719404239571,46.81,137.15,137.11,43.2327]
[1719404239744,20.0,137.14,137.11,43.2327]
[1719404240136,20.0,137.14,137.11,25.0]
[1719404240561,7.2923,137.13,137.1,0.8443986]
[1719404240857,27.293,137.12,137.1,0.8443986]
[1719404241071,20.0,137.12,137.1,0.8443986]
[1719404241458,20.0,137.13,137.1,0.8443986]
[1719404242064,20.0,137.13,137.11,25.0]
[1719404242376,20.0,137.14,137.12,7.2927]
[1719404242575,20.0,137.14,137.13,25.0]
[1719404242956,20.0,137.14,137.11,7.2931]
[1719404243169,20.0,137.14,137.12,25.0]
[1719404243389,20.0,137.15,137.12,25.0]
[1719404244159,27.2913,137.15,137.1,57.4688986]
[1719404244356,27.2913,137.15,137.12,25.0]
[1719404244598,20.0,137.15,137.12,25.0]
[1719404244877,20.0,137.15,137.12,43.2322]
[1719404245091,6.78510536,137.21,137.1,22.3601986]
[1719404245092,20.0,137.19,137.17,25.0]
[1719404245262,40.5128,137.24,137.17,32.2901]
[1719404245263,20.0,137.2,137.17,32.2901]
[1719404245584,58.7303,137.24,137.17,7.2901]
[1719404245585,26.81,137.21,137.17,7.2901]
[1719404245780,7.2881,137.21,137.16,25.5173]
[1719404246080,7.2887,137.2,137.16,18.2267]
[1719404246654,7.2887,137.2,137.17,25.0]
[1719404246855,20.0,137.19,137.17,25.0]
[1719404248277,20.0,137.2,137.17,7.2902]
[1719404248479,20.0,137.21,137.17,24.8447]
[1719404248685,20.0,137.22,137.18,7.2896]
[1719404249294,20.0,137.22,137.19,25.0]
[1719404250059,20.0,137.22,137.17,57.1346]
[1719404251068,27.2876,137.22,137.17,57.1346]
[1719404251485,20.0,137.22,137.17,25.0]
[1719404251664,7.2888,137.2,137.17,25.0]
[1719404251863,20.0,137.19,137.17,25.0]
[1719404252385,20.0,137.22,137.17,25.0]
[1719404252771,7.2892,137.19,137.17,25.0]
[1719404253180,7.2888,137.2,137.17,25.0]
[1719404253492,20.0,137.19,137.17,25.0]
[1719404253867,20.0,137.22,137.17,25.0]
[1719404254777,7.2896,137.18,137.17,25.0]
[1719404255094,27.2899,137.18,137.14,25.0]
[1719404255276,27.2902,137.17,137.12,66.4013]
[1719404255583,7.2914,137.15,137.12,25.0]
[1719404255767,20.0,137.14,137.12,25.0]
[1719404256387,53.66,137.18,137.12,25.0]
[1719404256388,20.0,137.17,137.12,25.0]
[1719404256765,7.2921,137.14,137.12,25.0]
[1719404256966,20.0,137.13,137.12,25.0]
[1719404260369,20.0,137.14,137.12,25.0]
[1719404260785,20.0,137.14,137.12,32.2925]
[1719404261381,20.0,137.16,137.12,32.2925]
[1719404261575,7.2912,137.15,137.12,25.0]
[1719404261780,20.0,137.14,137.12,25.0]
[1719404262507,53.83,137.2,137.12,25.0]
[1719404262508,7.2907,137.16,137.12,25.0]
[1719404262668,20.0,137.15,137.12,25.0]
[1719404265386,27.2915,137.15,137.12,25.0]
[1719404267120,20.0,137.15,137.12,25.0]
[1719404267987,7.2918,137.14,137.12,25.0]
[1719404268187,7.2915,137.15,137.12,25.0]
[1719404268388,20.0,137.14,137.12,25.0]
[1719404268899,7.2923,137.13,137.12,25.0]
[1719404269396,27.292,137.14,137.12,25.0]
[1719404270899,20.0,137.14,137.12,25.0]
[1719404271603,27.2918,137.14,137.12,25.0]
[1719404271795,7.2918,137.14,137.1,25.8443986]
[1719404272601,26.86,137.13,137.1,25.8443986]
[1719404273506,26.86,137.13,137.1,33.1382986]
[1719404273704,26.86,137.13,137.1,25.8443986]
[1719404275110,26.86,137.13,137.1,33.1382986]
[1719404275297,7.2918,137.14,137.1,25.8443986]
[1719404275901,26.86,137.11,137.1,0.8443986]
[1719404276910,46.86,137.11,137.1,0.8443986]
[1719404277209,54.1534,137.11,137.1,0.8443986]
[1719404278513,46.86,137.11,137.1,0.8443986]
[1719404279586,46.86,137.11,137.04,40.9055]
[1719404279791,26.86,137.05,137.04,25.0]
[1719404280593,20.0,137.1,137.04,25.0]
[1719404280790,7.2956,137.07,137.04,25.0]
[1719404281494,20.0,137.06,137.04,25.0]
[1719404281706,7.2969,137.05,137.0,32.2992]
[1719404281905,27.2972,137.04,137.0,25.0]
[1719404282413,7.2977,137.03,137.0,25.0]
[1719404282595,20.0,137.02,137.0,25.0]
[1719404283283,20.0,137.03,137.0,25.0]
[1719404283488,20.0,137.03,137.0,32.2992]
[1719404283817,20.0,137.04,137.02,50.5436]
[1719404284115,7.2955,137.07,137.02,25.5435]
[1719404284415,20.0,137.06,137.02,43.2455]
[1719404284586,27.296,137.06,137.02,43.2455]
[1719404284787,20.0,137.06,137.02,50.5436]
[1719404285006,27.296,137.06,137.02,43.2455]
[1719404285391,14.43981647,137.11,137.05,7.2961]
[1719404285694,46.27190729,137.14,137.03,15.6868]
[1719404285695,46.27190729,137.14,137.07,32.2955]
[1719404285893,53.41812376,137.14,137.07,32.2955]
[1719404286095,53.41812376,137.14,137.07,7.2955]
[1719404286294,53.41812376,137.14,137.07,32.2955]
[1719404286697,7.2929,137.12,137.07,32.2955]
[1719404287414,7.2934,137.11,137.07,25.0]
[1719404287711,53.41812376,137.14,137.07,32.2954]
[1719404288094,7.2934,137.11,137.06,25.5357]
[1719404288298,7.2939,137.1,137.06,18.2399]
[1719404288499,20.0,137.1,137.06,18.2399]
[1719404288701,27.294,137.1,137.05,32.2961]
[1719404288909,7.2947,137.09,137.05,25.0]
[1719404290922,20.0,137.08,137.05,50.5378]
[1719404291222,20.0,137.1,137.06,7.296]
[1719404291715,27.294,137.1,137.05,50.5379]
[1719404291917,7.2945,137.09,137.05,25.0]
[1719404292213,20.0,137.1,137.05,43.2415]
[1719404292403,38.2326,137.12,137.05,25.0]
[1719404292606,7.2946,137.09,137.05,25.0]
[1719404292809,20.0,137.08,137.05,25.0]
[1719404293329,27.2952,137.08,137.05,25.0]
[1719404293626,7.2952,137.08,137.05,25.0]
[1719404293823,7.2959,137.07,137.03,40.6868]
[1719404294120,27.2959,137.07,137.03,25.0]
[1719404294622,7.2963,137.06,137.03,25.0]
[1719404294802,20.0,137.05,137.03,25.0]
[1719404295391,20.0,137.07,137.03,25.0]
[1719404295594,20.0,137.07,137.03,43.2437]
[1719404295794,20.0,137.09,137.03,43.2437]
[1719404296008,7.2953,137.08,137.03,50.5412]
[1719404296194,20.0,137.07,137.03,50.5412]
[1719404296394,20.0,137.07,137.03,50.5413]
[1719404297215,27.2956,137.07,137.03,43.2437]
[1719404297418,20.0,137.07,137.03,50.5413]
[1719404297594,20.0,137.07,137.03,43.2437]
[1719404297792,7.2946,137.09,137.04,7.2968]
[1719404298129,20.0,137.08,137.03,50.5411]
[1719404298424,27.295,137.08,137.05,25.0]
[1719404298617,20.0,137.08,137.05,25.0]
[1719404299497,7.2956,137.07,137.05,25.0]
[1719404300320,7.2952,137.08,137.05,25.0]
[1719404300528,20.0,137.07,137.05,25.0]
[1719404301194,7.2936,137.11,137.07,25.0]
[1719404301397,60.91621647,137.13,137.05,32.2965]
[1719404301398,27.294,137.1,137.05,32.2965]
[1719404301612,20.0,137.1,137.06,7.296]
[1719404302304,20.0,137.1,137.07,25.0]
[1719404303223,27.294,137.1,137.07,25.0]
[1719404304125,20.0,137.1,137.07,32.2954]
[1719404304428,20.0,137.11,137.07,32.2954]
[1719404304807,20.0,137.11,137.09,25.0]
[1719404305613,401.8216,137.19,137.1,0.34]
[1719404305928,7.2894,137.19,137.13,7.292]
[1719404306108,6.75621647,137.21,137.13,7.292]
[1719404306630,7.2897,137.18,137.14,25.0]
[1719404306799,7.2893,137.19,137.14,32.2915]
[1719404307009,6.75621647,137.21,137.15,7.2911]
[1719404307010,7.2886,137.2,137.15,7.2911]
[1719404307203,6.75621647,137.21,137.16,7.2906]
[1719404307204,14.04431647,137.21,137.16,7.2906]
[1719404307409,7.2879,137.22,137.16,25.0]
[1719404307628,7.2879,137.22,137.16,32.2904]
[1719404307808,7.2879,137.22,137.18,25.0]
[1719404308716,20.0,137.21,137.18,25.0]
[1719404309422,27.2881,137.21,137.18,25.0]
[1719404310234,20.0,137.21,137.16,25.0]
[1719404310437,7.29,137.18,137.16,25.0]
[1719404311428,20.0,137.22,137.16,25.0]
[1719404311638,7.2884,137.21,137.16,32.2907]
[1719404311828,20.0,137.2,137.16,25.0]
[1719404312223,27.2887,137.2,137.16,25.0]
[1719404312616,7.2892,137.19,137.16,25.0]
[1719404312813,20.0,137.18,137.16,25.0]
[1719404314514,20.0,137.19,137.16,25.0]
[1719404315343,27.2892,137.19,137.16,25.0]
[1719404317049,20.0,137.19,137.16,25.0]
[1719404317717,27.2893,137.19,137.16,25.0]
[1719404317923,7.2905,137.17,137.14,6.0274]
[1719404318123,7.2908,137.16,137.14,6.0274]
[1719404319050,7.2904,137.17,137.14,6.0274]